bitfinex/quotes_ETHUSD_20251021
["timestamp","ask_amount","ask_price","bid_price","bid_amount"]
[1761029083803,0.128,3889.7,3889.3,3.296]
[1761029083992,0.128,3889.7,3889.3,5.86714578]
[1761029084191,0.128,3889.7,3889.4,2.57106925]
[1761029085176,0.128,3889.7,3889.5,2.57102063]
[1761029085494,1.856,3889.7,3889.6,2.57095845]
[1761029086169,0.128,3889.7,3889.6,2.57095845]
[1761029088515,5.83621612,3889.7,3889.3,3.296]
[1761029088812,6.14311612,3889.7,3889.3,3.296]
[1761029089019,5.70821612,3889.7,3889.4,2.57106229]
[1761029089181,0.4349,3889.6,3889.3,5.86709761]
[1761029089383,0.4349,3889.6,3889.4,2.57108129]
[1761029090379,3.292,3890.0,3889.5,0.4382]
[1761029090700,3.7269,3890.2,3889.7,2.57084517]
[1761029090901,5.70821612,3890.4,3889.4,0.84403607]
[1761029091063,11.16211612,3890.3,3889.8,2.57076468]
[1761029091271,1.728,3889.9,3889.4,0.84403607]
[1761029091470,1.728,3889.9,3889.3,3.296]
[1761029091671,1.728,3889.9,3889.8,2.57082626]
[1761029092909,2.1629,3890.2,3889.8,2.57082626]
[1761029093295,0.4349,3890.1,3889.8,2.57082626]
[1761029093875,0.4349,3890.1,3889.7,2.5708793]
[1761029094295,0.4349,3890.1,3889.6,2.57093226]
[1761029094686,0.4349,3890.1,3889.6,2.57293226]
[1761029095176,0.4349,3890.1,3889.7,2.57087326]
[1761029095378,0.4349,3890.1,3889.6,2.57293985]
[1761029095715,0.4349,3890.1,3889.6,0.002]
[1761029095921,0.4349,3890.1,3889.8,2.57077652]
[1761029096219,0.4349,3890.1,3889.6,2.57294364]
[1761029096220,1.728,3889.9,3889.6,2.57294364]
[1761029096516,1.728,3889.9,3889.6,2.57294947]
[1761029096675,0.4349,3889.8,3889.6,2.57294947]
[1761029097324,0.001,3890.3,3890.2,2.57056192]
[1761029097492,0.001,3890.3,3890.2,3.288]
[1761029097805,0.001,3890.3,3890.2,5.85856192]
[1761029098008,0.001,3890.3,3889.6,0.84620375]
[1761029098207,0.4359,3890.3,3889.7,3.297]
[1761029098383,0.4359,3890.3,3890.2,2.57056192]
[1761029099909,0.128,3890.2,3889.9,2.57073026]
[1761029100111,0.128,3890.2,3889.8,2.57082626]
[1761029100414,1.728,3890.0,3889.7,5.86788975]
[1761029100599,0.128,3889.9,3889.8,2.57082626]
[1761029101172,0.128,3889.9,3889.8,3.00802626]
[1761029101519,1.857,3890.3,3890.2,2.57056192]
[1761029101890,2.2973,3890.3,3890.1,2.57059899]
[1761029102412,1.728,3890.1,3889.7,3.297]
[1761029102613,5.70821612,3889.9,3889.7,3.297]
[1761029103014,0.4403,3889.8,3889.7,3.297]
[1761029103218,0.4403,3889.8,3889.7,5.86789235]
[1761029103809,1.728,3890.1,3889.7,3.297]
[1761029104005,1.728,3890.1,3889.9,2.57070553]
[1761029104337,2.1683,3890.1,3889.9,2.57070553]
[1761029105134,0.4403,3890.0,3889.9,2.57070553]
[1761029106332,0.128,3889.9,3889.8,2.57080668]
[1761029106535,0.2352,3889.9,3889.8,2.57080668]
[1761029106694,0.6755,3889.9,3889.8,2.57080668]
[1761029107732,0.6755,3889.9,3889.6,0.002]
[1761029108037,8.59260069,3889.7,3889.6,0.002]
[1761029108235,11.88760069,3889.7,3889.6,0.002]
[1761029108439,12.32790069,3889.7,3889.6,0.002]
[1761029109492,5.023,3889.7,3889.6,0.002]
[1761029109692,1.728,3889.7,3889.6,2.57295845]
[1761029110850,1.728,3889.7,3889.6,0.002]
[1761029111023,2.1683,3889.7,3889.6,0.002]
[1761029111433,1.728,3889.7,3889.6,0.002]
[1761029111617,1.728,3889.7,3889.6,2.57295845]
[1761029113349,1.728,3889.7,3889.6,0.002]
[1761029113548,9.55932069,3889.7,3889.6,0.002]
[1761029114412,9.11902069,3889.7,3889.6,0.002]
[1761029115117,9.55932069,3889.7,3889.6,0.002]
[1761029116649,9.11902069,3889.7,3889.6,0.002]
[1761029118158,9.11902069,3889.7,3889.6,2.57295845]
[1761029118657,8.59260069,3889.7,3889.6,0.002]
[1761029119040,7.30490069,3889.7,3889.6,0.002]
[1761029119921,3.5372,3889.8,3889.6,0.002]
[1761029120120,3.302,3889.8,3889.6,2.57292265]
[1761029120527,6.86560069,3890.0,3889.6,2.57292265]
[1761029120750,3.299,3889.8,3889.6,0.002]
[1761029120943,3.3,3889.8,3889.6,2.5729123]
[1761029121142,7.89521876,3890.0,3889.6,0.002]
[1761029121452,3.299,3889.8,3889.7,2.57089235]
[1761029121645,3.299,3889.8,3889.6,0.002]
[1761029121848,0.128,3889.7,3889.6,2.57295845]
[1761029128176,0.128,3889.7,3889.6,0.002]
[1761029128968,0.5838,3889.7,3889.6,0.002]
[1761029130654,0.128,3889.7,3889.6,0.002]
[1761029132677,0.5625,3889.7,3889.6,0.002]
[1761029132857,0.128,3889.7,3889.6,0.002]
[1761029133178,0.5625,3889.7,3889.6,0.002]
[1761029133754,4.86139235,3889.7,3889.6,0.002]
[1761029137648,1.856,3889.7,3889.6,0.002]
[1761029137849,5.4535,3889.7,3889.6,0.002]
[1761029138453,5.85679603,3889.7,3889.6,0.002]
[1761029139054,8.42768838,3889.7,3889.6,0.002]
[1761029139655,5.85679603,3889.7,3889.6,0.002]
[1761029139860,8.42768838,3889.7,3889.6,0.002]
[1761029140501,5.85679603,3889.7,3889.6,0.002]
[1761029141981,5.42229603,3889.7,3889.6,0.002]
[1761029142968,5.019,3889.7,3889.6,0.002]
[1761029143265,5.015,3889.7,3889.6,0.002]
[1761029144984,1.728,3889.7,3889.6,0.002]
[1761029145187,5.014,3889.7,3889.6,0.002]
[1761029145376,1.856,3889.7,3889.6,2.57295845]
[1761029145884,1.856,3889.7,3889.6,0.002]
[1761029147255,1.856,3889.7,3889.6,2.57295845]
[1761029147467,1.856,3889.7,3889.6,0.002]
[1761029148792,1.857,3889.7,3889.6,0.002]
[1761029155020,3.12868632,3889.7,3889.6,0.002]
[1761029157013,5.69957867,3889.7,3889.6,0.002]
[1761029157305,5.97618632,3889.7,3889.6,0.002]
[1761029157479,6.41068632,3889.7,3889.6,0.002]
[1761029160212,5.139,3889.7,3889.6,0.002]
[1761029160392,5.5735,3889.7,3889.6,0.002]
[1761029162008,8.14439235,3889.7,3889.6,0.002]
[1761029163512,1.857,3889.7,3889.6,0.002]
[1761029163715,5.137,3889.7,3889.6,0.002]
[1761029167612,1.857,3889.7,3889.6,0.002]
[1761029175124,2.2892,3889.7,3889.6,0.002]
[1761029175625,4.86009235,3889.7,3889.6,0.002]
[1761029179914,4.42789235,3889.7,3889.6,0.002]
[1761029180210,4.85989235,3889.7,3889.6,0.002]
[1761029186547,10.85174294,3889.7,3889.6,0.002]
[1761029186946,13.42263529,3889.7,3889.6,0.002]
[1761029187445,10.14963529,3889.7,3889.6,0.002]
[1761029187835,13.42263529,3889.7,3889.6,0.002]
[1761029188213,7.57874294,3889.7,3889.6,0.002]
[1761029188417,10.85174294,3889.7,3889.6,0.002]
[1761029189042,1.729,3889.7,3889.6,0.4563]
[1761029189243,1.729,3889.7,3889.6,3.02725845]
[1761029189458,1.729,3889.7,3889.6,0.4563]
[1761029190162,1.857,3889.7,3889.6,0.4563]
[1761029190658,1.78886971,3889.7,3889.6,0.4563]
[1761029191018,1.78886971,3889.7,3889.6,0.002]
[1761029192413,1.78886971,3889.7,3889.6,0.4483]
[1761029194663,7.51061265,3889.7,3889.6,0.002]
[1761029194844,1.78886971,3889.7,3889.6,0.002]
[1761029195044,1.78886971,3889.7,3889.6,0.4483]
[1761029195247,1.78886971,3889.7,3889.6,0.002]
[1761029198380,7.98541265,3889.7,3889.6,0.002]
[1761029198882,7.51061265,3889.7,3889.6,0.002]
[1761029202848,1.78886971,3889.7,3889.6,0.002]
[1761029208469,7.38261265,3889.7,3889.6,0.002]
[1761029212781,7.85741265,3889.7,3889.6,0.002]
[1761029213079,7.38261265,3889.7,3889.6,0.002]
[1761029216168,1.66086971,3889.7,3889.6,0.002]
[1761029217791,0.001,3889.7,3889.6,2.57295845]
[1761029217990,0.001,3889.7,3889.6,3.27932538]
[1761029218497,0.001,3889.7,3889.6,3.30503496]
[1761029218964,0.001,3889.7,3889.6,3.27932538]
[1761029221501,5.72274294,3889.7,3889.6,0.002]
[1761029221711,7.45074294,3889.7,3889.6,0.002]
[1761029222168,7.88884294,3889.7,3889.6,0.002]
[1761029222897,10.45973529,3889.7,3889.6,0.002]
[1761029224208,1.729,3889.7,3889.6,0.002]
[1761029224377,2.1671,3889.7,3889.6,0.002]
[1761029224580,5.87601664,3889.7,3889.6,0.002]
[1761029228307,1.729,3889.7,3889.6,0.002]
[1761029228499,5.001,3889.7,3889.6,0.002]
[1761029230019,8.00999235,3889.7,3889.6,0.002]
[1761029231527,7.57189235,3889.7,3889.6,0.002]
[1761029231699,8.41332223,3889.7,3889.6,0.002]
[1761029232114,8.00999235,3889.7,3889.6,0.002]
[1761029232825,5.001,3889.7,3889.6,0.002]
[1761029234691,1.729,3889.7,3889.6,0.002]
[1761029234896,5.001,3889.7,3889.6,0.002]
[1761029235096,5.4043054,3889.7,3889.6,0.002]
[1761029236841,7.97519775,3889.7,3889.6,0.002]
[1761029237020,8.40969775,3889.7,3889.6,0.002]
[1761029237799,7.97519775,3889.7,3889.6,0.002]
[1761029238305,5.4043054,3889.7,3889.6,0.002]
[1761029238915,5.001,3889.7,3889.6,0.002]
[1761029239113,5.40430528,3889.7,3889.6,0.002]
[1761029239436,9.08322646,3889.7,3889.6,0.002]
[1761029241112,15.94955062,3889.7,3889.6,0.002]
[1761029242638,13.04727164,3889.7,3889.6,0.002]
[1761029242938,11.97043753,3889.7,3889.6,0.002]
[1761029243135,11.86732416,3889.7,3889.6,0.002]
[1761029243305,5.001,3889.7,3889.6,0.002]
[1761029243499,1.729,3889.7,3889.6,0.002]
[1761029243719,5.001,3889.7,3889.6,0.002]
[1761029243920,1.729,3889.7,3889.6,0.002]
[1761029244122,5.001,3889.7,3889.6,0.002]
[1761029244531,1.729,3889.7,3889.6,0.002]
[1761029244728,1.857,3889.7,3889.6,0.002]
[1761029244906,0.001,3889.7,3889.6,3.13405503]
[1761029245111,0.001,3889.7,3889.6,3.59885503]
[1761029245925,0.001,3889.7,3889.6,3.62456461]
[1761029246362,0.001,3889.7,3889.6,3.59885503]
[1761029246652,0.001,3889.7,3889.6,3.62456461]
[1761029247161,0.001,3889.7,3889.6,4.25944461]
[1761029247460,0.001,3889.7,3889.6,4.23373503]
[1761029247769,0.001,3889.7,3889.6,4.25944461]
[1761029248054,0.001,3889.7,3889.6,4.36250751]
[1761029249429,0.001,3890.1,3890.0,3.07757408]
[1761029249659,0.001,3890.1,3890.0,13.95421827]
[1761029249929,0.001,3890.1,3890.0,7.55269411]
[1761029253652,0.001,3890.1,3890.0,4.28169411]
[1761029253858,0.001,3890.1,3890.0,7.55269411]
[1761029258250,0.001,3890.1,3890.0,7.08789411]
[1761029258474,0.001,3890.1,3890.0,7.55299411]
[1761029259163,0.001,3890.1,3890.0,7.04611411]
[1761029259674,0.001,3890.1,3890.0,7.55299411]
[1761029266785,0.001,3890.1,3890.0,7.55499411]
[1761029269076,0.001,3890.1,3890.0,7.65804108]
[1761029270257,0.001,3890.1,3890.0,7.55499411]
[1761029274684,0.001,3890.1,3890.0,7.08989411]
[1761029274889,0.001,3890.1,3890.0,7.55499411]
[1761029277915,0.001,3890.1,3890.0,7.42699411]
[1761029278079,0.001,3890.1,3890.0,7.55499411]
[1761029281022,0.001,3890.1,3890.0,7.08989411]
[1761029286620,0.001,3890.1,3890.0,7.54059411]
[1761029287508,0.001,3890.1,3890.0,7.08989411]
[1761029293139,0.001,3890.1,3890.0,7.54059411]
[1761029293501,0.001,3890.1,3890.0,7.08989411]
[1761029294410,0.001,3890.1,3890.0,7.54059411]
[1761029294611,0.001,3890.5,3890.4,3.07730977]
[1761029294827,0.001,3890.5,3890.4,7.12439123]
[1761029295130,0.001,3890.5,3890.4,7.54938694]
[1761029295554,0.001,3890.5,3890.4,7.09868694]
[1761029298024,0.4363,3890.5,3890.4,7.09868694]
[1761029298227,0.001,3890.5,3890.4,7.09868694]
[1761029302957,0.001,3890.5,3890.4,7.53148694]
[1761029303930,0.001,3890.5,3890.4,7.09868694]
[1761029304351,0.001,3890.5,3890.4,7.53148694]
[1761029315051,1e-08,3890.7,3890.6,3.07717764]
[1761029315257,1e-08,3890.7,3890.6,8.82057938]
[1761029315582,1e-08,3890.7,3890.6,9.39077641]
[1761029316088,0.001,3891.1,3891.0,3.07691341]
[1761029316089,1e-08,3891.1,3891.0,3.07691341]
[1761029316258,1e-08,3891.1,3891.0,12.06161218]
[1761029316459,1e-08,3891.1,3891.0,14.16747483]
[1761029316957,1e-08,3891.1,3891.0,13.69957483]
[1761029317166,1e-08,3891.1,3891.0,7.98187606]
[1761029322686,1e-08,3891.1,3891.0,8.44977606]
[1761029323187,1e-08,3891.1,3891.0,7.98187606]
[1761029325972,1e-08,3891.1,3891.0,8.44977606]
[1761029326183,1e-08,3891.1,3891.0,10.17777606]
[1761029327099,1e-08,3891.1,3891.0,10.28078932]
[1761029327275,1e-08,3891.1,3891.0,10.15278932]
[1761029327478,1e-08,3891.1,3891.0,14.08078932]
[1761029327870,1e-08,3891.1,3891.0,16.79178932]
[1761029328200,1e-08,3891.1,3891.0,12.99178932]
[1761029329101,1.728,3893.3,3892.9,2.56877905]
[1761029329281,1.728,3893.3,3892.9,5.83477905]
[1761029329795,0.6792,3893.0,3892.9,5.83477905]
[1761029331179,0.2265,3894.0,3892.9,3.77288]
[1761029331388,0.2265,3894.0,3893.2,2.56858111]
[1761029331677,0.001,3894.1,3894.0,2.56805341]
[1761029331871,0.001,3894.1,3894.0,6.34093341]
[1761029333508,0.4597,3894.1,3894.0,2.56805341]
[1761029333708,0.4597,3894.1,3893.3,0.2265]
[1761029333709,6.17739877,3894.1,3893.3,0.2265]
[1761029333875,6.17739877,3894.1,3893.3,2.79501036]
[1761029333876,0.61783988,3894.0,3893.3,2.79501036]
[1761029334076,0.2224,3893.4,3893.3,2.56851036]
[1761029334412,0.2224,3893.4,3893.3,5.83351036]
[1761029334909,0.4587,3893.7,3893.6,2.56831723]
[1761029335215,0.4587,3893.7,3893.6,5.83331723]
[1761029337126,0.2224,3893.8,3893.7,2.56825127]
[1761029338320,0.6811,3893.8,3893.7,2.56825127]
[1761029339085,0.6811,3893.8,3893.7,2.69625127]
[1761029339287,0.001,3894.0,3893.9,3.07499936]
[1761029339590,0.4597,3894.0,3893.9,5.83211936]
[1761029339789,0.4597,3894.0,3893.9,5.93508569]
[1761029340002,0.001,3894.0,3893.9,5.93508569]
[1761029340323,0.4597,3894.0,3893.9,5.93508569]
[1761029340531,0.001,3894.0,3893.9,6.44196569]
[1761029341019,0.001,3894.0,3893.9,7.45396712]
[1761029341195,1e-08,3894.2,3894.1,3.07486746]
[1761029341400,1e-08,3894.2,3894.1,4.99704733]
[1761029341714,0.4385,3895.8,3894.7,3.07447185]
[1761029341893,0.4385,3895.8,3894.7,12.47717062]
[1761029342094,0.2288,3896.5,3894.7,15.23865557]
[1761029342284,0.4385,3896.3,3894.7,15.70965557]
[1761029342490,0.4385,3896.3,3894.7,16.14815557]
[1761029344411,0.6673,3896.5,3894.7,16.14815557]
[1761029344607,0.2288,3896.5,3894.7,16.14815557]
[1761029345127,0.2288,3895.9,3894.7,16.14815557]
[1761029345431,0.4385,3895.8,3894.7,16.14815557]
[1761029345933,0.2288,3896.5,3894.7,16.14815557]
[1761029346092,0.2288,3895.9,3894.7,16.14815557]
[1761029347492,0.4385,3896.1,3894.7,16.14815557]
[1761029347697,0.6673,3896.4,3896.3,3.07341748]
[1761029347901,0.6673,3896.4,3896.3,6.90042193]
[1761029348239,0.6673,3896.4,3896.3,5.82953748]
[1761029349415,0.6673,3896.4,3896.3,5.95753748]
[1761029349797,0.6673,3896.4,3896.3,3.391]
[1761029350011,0.6673,3896.4,3896.3,5.95753748]
[1761029352424,0.6673,3896.4,3896.3,2.69453748]
[1761029352623,0.6673,3896.4,3896.3,5.95653748]
[1761029357628,0.6673,3896.4,3896.3,3.39]
[1761029358221,1.856,3896.3,3895.7,0.128]
[1761029358416,1.9548,3895.8,3894.2,2.56792016]
[1761029358657,1.9548,3895.8,3895.0,0.128]
[1761029358803,0.2268,3894.7,3894.5,0.128]
[1761029359202,0.6696,3894.7,3894.6,3.264]
[1761029359425,0.6696,3894.7,3894.6,5.83165778]
[1761029359754,0.2268,3894.7,3894.6,5.83165778]
[1761029360054,0.2268,3895.8,3894.7,0.50688]
[1761029360344,0.2268,3895.8,3895.7,2.56693277]
[1761029360501,0.2268,3895.8,3895.7,3.262]
[1761029361129,0.6696,3895.8,3895.7,3.262]
[1761029361330,0.90936,3895.8,3895.7,3.262]
[1761029361530,0.6696,3895.8,3895.7,3.262]
[1761029362766,0.7976,3895.8,3895.7,5.82893277]
[1761029362932,0.7976,3895.8,3895.7,3.262]
[1761029363560,0.7976,3895.8,3895.4,3.262]
[1761029363761,0.3548,3895.8,3895.4,3.262]
[1761029363954,0.3548,3895.8,3895.6,2.56698252]
[1761029364150,0.3548,3895.8,3895.5,2.56706418]
[1761029364356,0.4428,3895.7,3895.5,2.56706418]
[1761029364538,0.4428,3895.7,3895.6,2.56699866]
[1761029365065,0.4428,3895.7,3895.5,2.56705235]
[1761029365265,0.4428,3895.7,3895.4,3.262]
[1761029365466,0.4428,3895.7,3895.5,2.56704932]
[1761029365664,0.4428,3895.7,3895.4,5.82912641]
[1761029365976,0.4428,3895.7,3895.4,3.262]
[1761029366377,0.4428,3895.7,3895.6,2.56699866]
[1761029366537,0.4428,3895.7,3895.5,2.56705244]
[1761029366736,0.4428,3895.7,3895.4,3.262]
[1761029367156,0.4428,3895.7,3894.6,0.002]
[1761029367366,0.2268,3894.7,3894.6,2.56965778]
[1761029367557,0.4428,3895.7,3895.4,2.56710862]
[1761029367759,0.4428,3895.6,3895.3,2.56718598]
[1761029367977,0.4428,3895.6,3895.0,3.262]
[1761029368266,0.4428,3895.6,3895.3,2.56717927]
[1761029368467,0.4428,3895.6,3895.1,2.56732576]
[1761029368837,0.4428,3895.6,3895.2,2.56725252]
[1761029369038,0.4428,3895.6,3895.1,2.56731862]
[1761029369336,0.93924166,3895.6,3895.1,2.56732818]
[1761029369548,0.4428,3895.6,3895.2,2.56724117]
[1761029369746,0.4428,3895.5,3895.2,2.56724117]
[1761029369973,0.4428,3895.5,3895.0,3.262]
[1761029371532,0.4428,3895.5,3895.0,5.829381]
[1761029371734,0.4428,3895.5,3895.2,2.56721252]
[1761029373366,0.4428,3895.5,3895.1,2.56730801]
[1761029373560,0.4428,3895.5,3895.0,5.82937353]
[1761029373749,0.68256,3895.5,3895.0,5.82937353]
[1761029373955,0.68256,3895.5,3894.8,0.002]
[1761029374141,0.2313,3894.9,3894.8,0.002]
[1761029374345,0.701,3894.9,3894.8,0.002]
[1761029377768,0.701,3894.9,3894.8,2.56952593]
[1761029377969,0.4697,3895.3,3894.8,0.002]
[1761029378275,0.128,3895.2,3895.1,2.56732818]
[1761029379292,0.5977,3895.2,3894.8,3.272]
[1761029379495,0.2313,3894.9,3894.8,5.83952593]
[1761029379867,0.701,3894.9,3894.8,5.83952593]
[1761029380564,0.2313,3894.9,3894.8,5.83952593]
[1761029380982,0.5977,3895.2,3894.9,2.56741448]
[1761029381189,0.5977,3895.2,3894.8,5.83952593]
[1761029381378,0.5977,3895.2,3894.9,2.56746001]
[1761029382098,0.128,3895.2,3894.9,2.56746001]
[1761029382297,0.4697,3895.1,3894.9,2.56746001]
[1761029382502,0.4697,3895.1,3895.0,2.56739409]
[1761029383183,0.4697,3895.1,3894.9,2.56745685]
[1761029383568,0.4697,3895.1,3895.0,2.56739409]
[1761029385202,0.128,3895.2,3895.0,2.56739409]
[1761029385903,0.4697,3895.1,3895.0,2.56739409]
[1761029386876,0.4697,3895.1,3894.9,2.56744342]
[1761029387712,0.128,3895.2,3894.8,3.272]
[1761029387878,0.128,3895.2,3895.1,2.56732818]
[1761029388080,0.128,3895.2,3895.1,5.83432818]
[1761029388282,0.4697,3895.6,3894.9,0.3402]
[1761029388505,0.4697,3895.6,3895.0,3.267]
[1761029388805,2.1977,3895.6,3895.0,5.83438917]
[1761029389199,0.4697,3895.5,3895.0,5.83438917]
[1761029389506,0.4697,3895.5,3895.0,3.267]
[1761029389807,0.4697,3895.5,3895.2,2.56725991]
[1761029390307,0.2278,3895.8,3895.3,3.266]
[1761029390488,0.6975,3895.8,3895.4,5.83309612]
[1761029390685,0.6975,3895.8,3895.5,5.83305966]
[1761029391012,0.001,3895.8,3895.7,3.24231277]
[1761029391307,0.001,3895.8,3895.7,3.07381277]
[1761029392178,0.001,3895.8,3895.7,2.56693277]
[1761029393082,0.001,3895.8,3895.7,3.52811277]
[1761029394216,0.001,3895.8,3895.5,0.84003167]
[1761029394392,0.001,3895.8,3895.7,2.56693277]
[1761029394592,0.4707,3895.8,3895.7,2.56693277]
[1761029395004,0.001,3895.8,3895.7,2.56693277]
[1761029395924,0.001,3895.8,3895.7,2.59260209]
[1761029396122,0.001,3895.8,3895.7,3.04690209]
[1761029396325,0.001,3895.8,3895.7,4.41640842]
[1761029396481,0.001,3895.8,3895.7,4.44207774]
[1761029396882,0.001,3895.8,3895.7,4.41640842]
[1761029398290,0.001,3895.8,3895.7,4.09010842]
[1761029399526,0.001,3895.8,3895.7,4.54440842]
[1761029399733,0.001,3895.8,3895.7,4.09010842]
[1761029400443,0.001,3895.8,3894.8,1.73]
[1761029400635,0.4707,3895.8,3894.9,3.274]
[1761029400814,0.4707,3895.8,3895.4,2.56708454]
[1761029401018,0.001,3895.8,3895.5,0.02567064]
[1761029401214,0.001,3895.8,3895.6,3.275]
[1761029401398,0.4668,3895.7,3894.8,0.002]
[1761029401753,2.56746001,3894.9,3894.8,0.002]
[1761029402045,0.481746,3894.9,3894.8,0.002]
[1761029402215,0.6918,3894.9,3894.8,0.002]
[1761029403232,4.98726001,3894.9,3894.8,0.002]
[1761029404631,21.1199437,3894.9,3894.8,0.002]
[1761029405396,24.68196227,3894.9,3894.8,0.002]
[1761029406009,25.18884227,3894.9,3894.8,0.002]
[1761029406851,25.5916773,3894.9,3894.8,0.002]
[1761029407053,25.59166249,3894.9,3894.8,0.002]
[1761029407561,25.99449802,3894.9,3894.8,0.002]
[1761029408056,26.30959957,3894.9,3894.8,0.002]
[1761029408436,25.99449802,3894.9,3894.8,0.002]
[1761029408639,25.72247945,3894.9,3894.8,0.002]
[1761029409329,25.72347945,3894.9,3894.8,0.002]
[1761029411361,5.79391576,3894.9,3894.8,0.002]
[1761029411542,9.08291576,3894.9,3894.8,0.002]
[1761029412260,8.68008023,3894.9,3894.8,0.002]
[1761029413262,2.82362022,3894.9,3894.8,0.002]
[1761029413441,8.68008023,3894.9,3894.8,0.002]
[1761029414666,1.729,3894.9,3894.8,0.002]
[1761029415371,4.76326001,3894.9,3894.8,0.002]
[1761029416551,1.729,3894.9,3894.8,0.002]
[1761029417153,0.001,3894.9,3894.8,0.002]
[1761029417879,0.6669,3894.9,3894.8,0.002]
[1761029418085,3.62985001,3894.9,3894.8,0.002]
[1761029418572,2.96395001,3894.9,3894.8,0.002]
[1761029418770,0.001,3894.9,3894.8,0.002]
[1761029420687,0.001,3894.9,3894.8,3.01312593]
[1761029421356,0.001,3894.9,3894.8,2.56952593]
[1761029421560,0.001,3894.9,3894.8,0.002]
[1761029421766,0.6669,3894.9,3894.8,0.002]
[1761029421966,3.23436001,3894.9,3894.8,0.002]
[1761029422992,2.78606001,3894.9,3894.8,0.002]
[1761029423701,0.2186,3894.9,3894.8,0.002]
[1761029423903,0.001,3894.9,3894.8,0.002]
[1761029424272,4.96236001,3894.9,3894.8,0.002]
[1761029425108,6.04413067,3894.9,3894.8,0.002]
[1761029426503,1.9466,3894.9,3894.8,0.002]
[1761029427096,1.729,3894.9,3894.8,0.002]
[1761029427397,4.29646001,3894.9,3894.8,0.002]
[1761029428300,4.96236001,3894.9,3894.8,0.002]
[1761029428502,1.729,3894.9,3894.8,0.002]
[1761029428805,7.58346001,3894.9,3894.8,0.002]
[1761029429110,5.016,3894.9,3894.8,0.002]
[1761029429806,8.24936001,3894.9,3894.8,0.002]
[1761029430012,5.6819,3894.9,3894.8,0.002]
[1761029431602,8.24936001,3894.9,3894.8,0.002]
[1761029434291,5.016,3894.9,3894.8,0.002]
[1761029434494,7.58346001,3894.9,3894.8,0.002]
[1761029434716,5.016,3894.9,3894.8,0.002]
[1761029435103,7.58346001,3894.9,3894.8,0.002]
[1761029436496,8.04456001,3894.9,3894.8,0.002]
[1761029436691,5.016,3894.9,3894.8,0.002]
[1761029437104,7.58346001,3894.9,3894.8,0.002]
[1761029438033,5.016,3894.9,3894.8,0.002]
[1761029438234,0.001,3894.9,3894.8,0.002]
[1761029439530,0.001,3894.9,3894.8,0.4381]
[1761029439736,0.001,3894.9,3894.8,0.002]
[1761029442304,0.001,3894.9,3894.8,3.56316546]
[1761029444136,0.001,3894.9,3894.8,3.12706546]
[1761029444340,0.001,3894.9,3894.8,3.56316546]
[1761029445042,0.001,3894.9,3894.8,0.002]
[1761029445451,0.001,3894.9,3894.8,3.00562593]
[1761029446330,0.001,3894.9,3894.8,2.56952593]
[1761029446531,0.001,3894.9,3894.8,0.4381]
[1761029446938,0.001,3894.9,3894.8,3.00562593]
[1761029447133,0.001,3894.9,3894.8,0.002]
[1761029447531,0.001,3894.9,3894.8,2.56952593]
[1761029447848,0.001,3894.9,3894.8,3.56315393]
[1761029448921,0.001,3894.9,3894.8,0.559528]
[1761029449254,8.11896091,3894.9,3894.8,0.002]
[1761029449850,10.68642092,3894.9,3894.8,0.002]
[1761029450050,1.729,3894.9,3894.8,0.002]
[1761029451127,7.43526091,3894.9,3894.8,0.002]
[1761029451324,8.11896091,3894.9,3894.8,0.002]
[1761029451543,7.43526091,3894.9,3894.8,0.002]
[1761029452361,7.65786091,3894.9,3894.8,0.002]
[1761029452533,8.11896091,3894.9,3894.8,0.002]
[1761029452932,0.001,3894.9,3894.8,2.56952593]
[1761029453131,0.001,3894.9,3894.8,3.92491345]
[1761029453335,0.001,3894.9,3894.8,0.002]
[1761029453860,0.001,3894.9,3894.8,2.56952593]
[1761029454062,0.001,3894.9,3894.8,0.002]
[1761029455733,0.6847,3894.9,3894.8,0.002]
[1761029455967,0.2236,3894.9,3894.8,0.002]
[1761029456131,0.001,3894.9,3894.8,0.002]
[1761029463158,0.2374,3894.9,3894.8,0.002]
[1761029463350,0.7083,3894.9,3894.8,0.002]
[1761029463977,0.001,3894.9,3894.8,0.002]
[1761029464475,0.001,3894.9,3894.8,2.56952593]
[1761029464656,0.001,3894.9,3894.8,0.002]
[1761029465775,0.001,3894.9,3894.8,13.26071959]
[1761029465975,0.001,3894.9,3894.8,7.52878343]
[1761029466147,0.001,3894.9,3894.8,3.25840343]
[1761029466352,0.001,3894.9,3894.8,5.99452593]
[1761029466750,0.001,3894.9,3894.8,3.299]
[1761029466951,0.001,3894.9,3894.8,5.86652593]
[1761029470996,0.001,3894.9,3894.8,6.33602593]
[1761029471983,0.001,3894.9,3894.8,6.46402593]
[1761029472173,0.001,3894.9,3894.8,7.93801995]
[1761029472992,0.001,3894.9,3894.8,7.46851995]
[1761029473159,0.001,3894.9,3894.8,5.99452593]
[1761029474411,0.001,3894.9,3894.8,6.46402593]
[1761029477625,0.001,3894.9,3894.8,6.84290593]
[1761029477810,0.001,3895.3,3895.2,3.07414227]
[1761029478007,0.001,3895.3,3895.2,13.24169402]
[1761029478208,0.001,3895.3,3895.2,15.2984354]
[1761029480722,0.001,3895.3,3895.2,12.0014354]